Cogmind - Beta 13 @@@ ROGUE MODE // 2024.06.18 @ 13:41:29 Player: Kinga Result: Destroyed by G-34 Mercenary with Small Laser Performance ------------- Evolutions (1) 500 Regions Visited (2) 400 Robots Destroyed (14) 70 Value Destroyed (396) 396 Prototype IDs (2) 40 Alien Tech Used (0) 0 Bonus (0) 0 TOTAL SCORE: 1406 Bonus ------- None Cogmind --------- Core Integrity 0/400 Matter 22/300 Energy 93/100 System Corruption 0% Temperature Cool (35) Movement Treading (160) Location -9/Materials Parts ------- > --- POWER (1) -------- (None) > --- PROPULSION (2) --- Light Treads Wheel > --- UTILITY (4) ------ Small Storage Unit Structural Scanner > --- WEAPON (2) ------- Improved Light Cannon Improved Light Cannon > --- INVENTORY (8) ---- (None) Peak State ------------ > --- POWER ------------ Light Ion Engine > --- PROPULSION ------- Light Treads Light Treads > --- UTILITY ---------- Small Storage Unit Structural Scanner Targeting Computer Light Armor Plating > --- WEAPON ----------- Light Assault Rifle Light Assault Rifle > --- INVENTORY -------- Ion Engine Light Treads Light Treads Wheel Wheel Assault Rifle Improved Light Cannon Improved Light Cannon [Rating: 10] Favorites ----------- Power Light Ion Engine Engine Light Ion Engine Propulsion Light Treads Treads Light Treads Wheel Wheel Utility Small Storage Unit Device Structural Scanner Storage Small Storage Unit Processor Targeting Computer Protection Light Armor Plating Weapon Light Assault Rifle Ballistic Gun Light Assault Rifle Ballistic Cannon Improved Light Cannon Build | -11 -10 -9 ------- Run | Yrd Mat Mat Slots Evolved 2 | . . 2 Power . | . . . Propulsion . | . . . Utility 2 | . . 2 Weapon . | . . . Parts Attached 24 | 6 1 17 Power 2 | 1 . 1 Engine 2 | 1 . 1 Core . | . . . Reactor . | . . . Propulsion 7 | 2 . 5 Treads 5 | 2 . 3 Leg . | . . . Wheel 2 | . . 2 Hover . | . . . Flight . | . . . Utility 4 | 1 1 2 Device 1 | . . 1 Storage 1 | 1 . . Processor 1 | . 1 . Hackware . | . . . Protection 1 | . . 1 Artifact . | . . . Weapon 11 | 2 . 9 Energy Gun . | . . . Energy Cannon . | . . . Ballistic Gun 5 | 2 . 3 Ballistic Cannon 6 | . . 6 Launcher . | . . . Special Weapon . | . . . Impact Weapon . | . . . Slashing Weapon . | . . . Piercing Weapon . | . . . Special Melee Weapon . | . . . Unidentified Prototypes . | . . . Parts Lost 14 | . . 14 Power 2 | . . 2 Propulsion 5 | . . 5 Utility 2 | . . 2 Weapon 5 | . . 5 Highest Loss Streak 7 | . . 7 To Critical Strikes . | . . . Average Slot Usage (%) 84 | . 90 79 Engine 10 | . 14 7 Treads 21 | . 28 14 Wheel 1 | . . 2 Device 5 | . . 11 Storage 12 | . 14 11 Processor 5 | . 5 6 Protection 3 | . . 6 Ballistic Gun 21 | . 28 14 Ballistic Cannon 2 | . . 4 Naked Turns . | . . . Heaviest Build 14 | 10 10 14 Greatest Support 40 | 40 40 40 Greatest Overweight (x) 1 | . . 1 Average Overweight (x) . | . . . Largest Inventory Capacity 8 | 8 8 8 Average Capacity 7 | 7 8 8 Most Carried 8 | 4 8 8 Average Carried 5 | 2 6 5 Final Capacity 8 | 8 8 8 Final Carried 8 | 4 8 . Class Distribution -------------------- 100% | Mutant Dominant Class ---------------- Mutant | -10/Materials Mutant | -9/Materials Resources | -11 -10 -9 ----------- Run | Yrd Mat Mat Matter Collected 317 | 232 85 . Remotely . | . . . Salvage Created 431 | . 149 282 Parts 25 | . 9 16 Haulers Intercepted 1 | . 1 . Recyclers Shooed . | . . . Parts Field Recycled . | . . . Retrieved Matter . | . . . Parts Self-Destructed . | . . . Prevented . | . . . Kills | -11 -10 -9 ------- Run | Yrd Mat Mat Combat Hostiles Destroyed 13 | . 4 9 Guns 8 | . 4 4 Cannons 5 | . . 5 Classes Destroyed 4 | . 3 1 Hauler 1 | . 1 . Swarmer 3 | . 3 . Grunt 9 | . 1 8 Sentry 1 | . . 1 Best Kill Streak 4 | . 3 4 Combat Bots Only 4 | . 3 4 Max Kills in Single Turn 1 | . 1 1 Gunslinging . | . . . Exploded . | . . . Melee . | . . . Uniques/NPCs Destroyed . | . . . Combat | -11 -10 -9 -------- Run | Yrd Mat Mat Hostile Shots Fired 237 | . 34 203 Missed 61 | . 9 52 Damage Taken 2037 | . 230 1807 Core 425 | . 15 410 Absorbed by Shields . | . . . Core Remaining (%) 97 | 100 94 . Volleys Fired 63 | . 24 39 Largest 2 | . 2 2 Hottest 78 | . 40 78 Shots Fired 119 | . 48 71 Gun 88 | . 48 40 Cannon 31 | . . 31 Launcher . | . . . Special . | . . . Kinetic 119 | . 48 71 Thermal . | . . . Explosive . | . . . Electromagnetic . | . . . Robot Hit Streak 11 | . 3 11 Robot Miss Streak 4 | . 4 3 Penetration Max . | . . . Secondary Targets 3 | . 2 1 Max Gunslinging Chain 1 | . 1 1 Shots Hit Robots 74 | . 25 49 Core Hits 27 | . 12 15 Critical Kills . | . . . Critical Parts Destroyed . | . . . Critical Strikes 3 | . . 3 Blast 3 | . . 3 Melee Attacks . | . . . Impact . | . . . Slashing . | . . . Piercing . | . . . Sneak Attacks . | . . . Combat Hostiles . | . . . Follow-up Attacks . | . . . Damage Inflicted 958 | . 193 765 Guns 454 | . 193 261 Cannons 504 | . . 504 Explosions . | . . . Melee . | . . . Ramming . | . . . Kinetic 958 | . 193 765 Thermal . | . . . Explosive . | . . . Electromagnetic . | . . . Impact . | . . . Slashing . | . . . Piercing . | . . . Highest Corruption . | . . . Average Corruption . | . . . Corruption Purged . | . . . Corruption Blocked . | . . . Overload Shots . | . . . Overflow Damage 4 | . . 4 Projectiles 4 | . . 4 Explosions . | . . . Melee . | . . . Knockbacks 10 | . . 10 Impact . | . . . Kinetic 8 | . . 8 Secondary 2 | . . 2 Self-Inflicted Damage . | . . . Shots . | . . . Rammed 1 | . 1 . Targets Rammed 1 | . 1 . Kicked . | . . . Crushed . | . . . Highest Temperature 287 | . 12 287 Average Temperature 71 | . 7 77 Received Heat Transfer 1062 | . 54 1008 Siege Activations . | . . . Robots Corrupted . | . . . Combat Hostiles . | . . . Parts Fried . | . . . Impact Corruptions . | . . . Robots Melted . | . . . Combat Hostiles . | . . . Parts Melted . | . . . Heat Transferred . | . . . Parts Sabotaged . | . . . Parts Stolen . | . . . Parts Stripped . | . . . Power Chain Reactions . | . . . Alert | -11 -10 -9 ------- Run | Yrd Mat Mat Peak Influence 129 | . 102 129 Initial 42 | . . 42 Average 57 | . 74 57 Maximum Alert Level . | . . . Low Security (%) 100 | 100 100 100 Level 1 . | . . . Level 2 . | . . . Level 3 . | . . . Level 4 . | . . . Level 5 . | . . . High Security . | . . . Max Security . | . . . Squads Dispatched 1 | . 1 . Investigation 1 | . 1 . Extermination . | . . . Reinforcement . | . . . Assault . | . . . Garrison . | . . . Intercept . | . . . Searches Triggered . | . . . Construction Impeded . | . . . Haulers Reinforced . | . . . Active Scanning Responses . | . . . Cargo Convoy Interrupts . | . . . Stealth | -11 -10 -9 --------- Run | Yrd Mat Mat Distress Signals 2 | . . 2 Communications Jammed . | . . . Distress Signals . | . . . Times Spotted 23 | . 6 17 Peak Tracking Total 13 | . 3 13 Tactical Retreats 1 | . . 1 Traps | -11 -10 -9 ------- Run | Yrd Mat Mat Traps Triggered . | . . . Indirectly . | . . . Trap Hack Attempts . | . . . Triggered . | . . . Disarmed . | . . . Reprogrammed . | . . . Reused . | . . . Traps Extracted . | . . . Installed . | . . . Triggered . | . . . Machines | -11 -10 -9 ---------- Run | Yrd Mat Mat Machines Disabled . | . . . Max in Single Turn . | . . . Machines Repaired . | . . . Machines Dismantled . | . . . Machines Sabotaged . | . . . Overloaded Fab Kills . | . . . Hacking | -11 -10 -9 --------- Run | Yrd Mat Mat Machines Accessed 3 | . 2 1 Terminals 3 | . 2 1 Fabricators . | . . . Repair Stations . | . . . Recycling Units . | . . . Scanalyzers . | . . . Garrison Access . | . . . Total Hacks 8 | . 6 2 Successful 1 | . 1 . Failed 7 | . 5 2 Catastrophic . | . . . Database Lockouts . | . . . Manual 6 | . 6 . Terminals 8 | . 6 2 Fabricators . | . . . Repair Stations . | . . . Recycling Units . | . . . Scanalyzers . | . . . Garrison Access . | . . . Terminal Hacks 1 | . 1 . Prototype ID Bank 1 | . 1 . Fabricator Hacks . | . . . Repair Station Hacks . | . . . Recycling Unit Hacks . | . . . Scanalyzer . | . . . Garrison Access Hacks . | . . . Unauthorized Hacks . | . . . Terminals . | . . . Fabricators . | . . . Repair Stations . | . . . Recycling Units . | . . . Scanalyzers . | . . . Garrison Access . | . . . Data Cores Recovered . | . . . Used . | . . . Hacking Detections 3 | . 2 1 Full Trace Events 1 | . 1 . Feedback Events . | . . . Feedback Blocked . | . . . Robot Schematics Acquired . | . . . Robots Built . | . . . Authchips . | . . . Time . | . . . Total Robot Build Rating . | . . . Part Schematics Acquired . | . . . Parts Built . | . . . Authchips . | . . . Time . | . . . Total Part Build Rating . | . . . Parts Repaired . | . . . Time . | . . . Parts Recycled . | . . . Recycled Matter . | . . . Retrieved Matter . | . . . Retrieved Components . | . . . Parts Scanalyzed . | . . . Part Schematics Acquired . | . . . Parts Damaged . | . . . Bothacking | -11 -10 -9 ------------ Run | Yrd Mat Mat Used RIF Installer . | . . . Robots Hacked . | . . . Non-combat . | . . . Combat . | . . . Robot Hacks Applied . | . . . Relay Couplers Released . | . . . Fabnet Peak Effective % . | . . . Robots Rewired . | . . . Allies Hacked . | . . . Hacks Repelled . | . . . Allies | -11 -10 -9 -------- Run | Yrd Mat Mat Total Allies . | . . . Largest Group . | . . . Highest-Rated Group . | . . . Highest-Rated Ally . | . . . Total Orders . | . . . Ally Attacks . | . . . Total Damage . | . . . Kills . | . . . Allies Corrupted . | . . . Allies Melted . | . . . Intel | -11 -10 -9 ------- Run | Yrd Mat Mat Robot Analysis Total . | . . . Derelict Logs Recovered . | . . . Drone Launches . | . . . Drone Recoveries . | . . . Exploration | -11 -10 -9 ------------- Run | Yrd Mat Mat Turns Passed 653 | 86 282 285 Spaces Moved 283 | 48 132 103 Core 15 | 3 . 12 Treads 267 | 45 132 90 Legs . | . . . Wheels 1 | . . 1 Hover . | . . . Flight . | . . . Fastest Speed 50 | 50 160 80 Average Speed 156 | 153 160 152 Slowest Speed 160 | 160 160 160 Overloaded Moves . | . . . Propulsion Burnouts . | . . . Robots Hopped . | . . . Cave-ins Triggered . | . . . Exploration Rate (%) 14 | 4 25 13 Regions Visited 2 Branch Regions . Pre-discovered Areas . | . . . Known Exits Taken . | . . . Unknown Exits Taken 2 | 1 1 . Scrap Searched . | . . . Spaces Dug . | . . . Terrain Destroyed . | . . . Melee . | . . . Projectile . | . . . AOE . | . . . Terrain Rammed . | . . . Walls Destroyed . | . . . Machines Disabled . | . . . Actions | -11 -10 -9 --------- Run | Yrd Mat Mat Total 391 | 58 164 169 Wait 3 | . 1 2 Move 281 | 47 131 103 Hop . | . . . Pick Up 14 | 5 5 4 Fast Attach 9 | 5 1 3 Attach 13 | 1 . 12 Detach 2 | . . 2 Swap 2 | . . 2 Drop 3 | . 1 2 Fire 63 | . 24 39 Melee . | . . . Ram . | . . . Kick . | . . . Crush 1 | . 1 . Escape Stasis . | . . . Rewire . | . . . Trap . | . . . Miscellaneous . | . . . Route ------- -11/Scrapyard -10/Materials -9/Materials History --------- Turn | Location | Event 15 | -11/Scrapyard | Discovered new exit (range 15) 87 | -11/Scrapyard | Entered Materials 310 | -10/Materials | Build established: Mutant 318 | -10/Materials | Discovered new exit (range 16) 369 | -10/Materials | Entered another Materials area 369 | -9/Materials | Evolved 2 slots: Utility x2 584 | -9/Materials | Lost 7 parts (1p4n2u) 612 | -9/Materials | Core integrity fell below 50% 634 | -9/Materials | Core integrity fell below 20% 654 | -9/Materials | Destroyed by G-34 Mercenary with Small Laser Last Messages --------------- 00595_ Switching to secondary target: G-34 Mercenary. 00601_ G-34 Mercenary destroyed. 00604_ Wheel destroyed. 00612_ Lgt. Assault Rifle destroyed. 00613_ K-01 Serf collects debris. 00617_ Ion Engine destroyed. 00619_ K-01 Serf collects debris. 00627_ G-34 Mercenary destroyed. 00629_ K-01 Serf collects debris. 00631_ Acquired Lgt. Treads. 00632_ K-01 Serf collects debris. 00638_ Assault Rifle destroyed. 00639_ K-01 Serf collects debris. 00642_ Acquired Imp. Light Cannon. 00643_ K-01 Serf collects debris. 00645_ Acquired Imp. Light Cannon. 00648_ K-01 Serf collects debris. 00649_ G-34 Mercenary destroyed. 00652_ K-01 Serf collects debris. 00652_ G-47 Trooper knocked back. Map ----- +----------------------------------------------------+ | ?????????????????????????????????????????????? | | ?????????????????????????????????????????????? | | ?????????????????????????????????????????????? | | ?????????????????????????????????????????????? | | ?????????????????????????????????????????????? | | ?????????????????????????????????????????????? | | ??????????????????????????? ???????????????? | | ??????????????????????????? ?????????????? | | ????????????????????????? # ????????????? | | ????????????????????????? #^ ????????????? | | ???????????????### #^ ????????????? | | ???????????????#######+#### ????? # ????? | | ??????????????? ### ^ ?????? # ????? | | ?????????????????? ?????? # ????? | | ??????????????????? ^ """??? # ????? | | ???????????????????## ^""""" # ????? | | ???????????????????## """"" # ????? | | ?????????????######## """"" # ?? | | ????????????? ####### """ [##+##?? | | ???????????? ?? | | ???????????? %= ??? | | ???????????? %[=* ??? | | ???????????????#############%[%#### ##?????? | | ???????????????## ###!%=#### ? ##?????? | | ???????????###### ### ##????????????? | | ???????????#### # k @ ### % ##????????????? | | ????####### # + ! ###]= ##????????????? | | ????#######? # % ###%] ##????????????? | | ????##"""##? # ###* ##????????????? | | ??####"T"#####+## g%g ### ##????????????? | | ??####" "##### + =[* % ### ##????????????? | | ??## =# # *=g= ### ##????????????? | | ??## =! # ####/####### ##????????????? | | ??## =! # %%% ##????????????? | | ??## !! + !% ##????????????? | | ??## # * ##????????????? | | ??## # ################????????????? | | ??## # ################????????????? | | ??## # #########???????????????????? | | ??############ #########???????????????????? | | ??############ # """ ##???????????????????? | | ?????## # # "R" ##???????????????????? | | ?????## # # " " ##???????????????????? | | ?????## """ + + ##???????????????????? | | ?????## """ # # ##???????????????????? | | ?????## """ # # ##???????????????????? | | ?????## # #########???????????????????? | | ?????#####################???????????????????? | | ?????# ??????????????????????????? | | ?????????????????????????????????????????????? | +----------------------------------------------------+ Best States ------------- Heat Dissipation 28 Energy Generation 10 Energy Capacity 250 Matter Stores 300 Matter Capacity 300 Sight Range 16 Terrain Scan Density 10 Armor Coverage 150 Evasion (%) 40 Targeting Accuracy 5 Recoil Reduction 2 Item Schematics ----------------- None Robot Schematics ------------------ None Fabricated ------------ Nothing Alien Tech Used ----------------- None Achievements -------------- None Challenges ------------ None Game ------ Seed RestorationReactionTorch Manual? 0 Play Time 00:06:09 Cumulative 58.8 hours Start 2024.06.18 @ 13:35:25 End 2024.06.18 @ 13:41:29 Sessions 1 Manual Loads 0 Difficulty Rogue Special Mode None Game No. 77 Rogue 75 Adventurer 0 Explorer 2 Win Type - Total 4 Types 3/0/0/1/0/0/0/0/0 Lore% 31 Gallery% 56 Achievement% 46 Wizard Run 0 Options --------- Layout 0 ASCII 0 Keyboard 0 Movement Numpad Keybinds 0 Fullscreen 2 Font 18/SmallcapsGlow Map View 76x50 Zoom Use 0% Tactical HUD 1 Map Filters NONE Filters NONE Steam 1 RUN: e3d457d4-b20e-4a99-98ca-1ad6b9637c8c